Cogmind - Beta 16 @@@ ROGUE MODE // 2025.11.16 @ 16:11:39 Player: Sir Cheese Result: Destroyed by D-53 Grenadier with Mini Grenade Launcher Performance ------------- Evolutions (0) 0 Regions Visited (2) 400 Robots Destroyed (17) 85 Value Destroyed (211) 211 Prototype IDs (2) 40 Alien Tech Used (0) 0 Bonus (0) 0 TOTAL SCORE: 736 Bonus ------- None Cogmind --------- Core Integrity 0/250 Matter 102/300 Energy 100/100 System Corruption 0% Temperature Cool (0) Movement Core (200) Ox3 Location -10/Mines Parts ------- > --- POWER (1) -------- (None) > --- PROPULSION (2) --- (None) > --- UTILITY (2) ------ Medium Storage Unit Structural Scanner > --- WEAPON (2) ------- (None) > --- INVENTORY (10) --- Ion Engine Improved Terrain Scanner Hacking Suite Medium Laser Beam Cannon Assault Rifle Assault Rifle Datajack Hammer Peak State ------------ > --- POWER ------------ Ion Engine > --- PROPULSION ------- Light Treads Light Treads > --- UTILITY ---------- Medium Storage Unit Seismic Detector > --- WEAPON ----------- Medium Laser Assault Rifle > --- INVENTORY -------- Ion Engine Improved Terrain Scanner Hacking Suite Grenade Launcher Grenade Launcher Mining Laser [Rating: 8] Favorites ----------- Power Ion Engine Engine Ion Engine Propulsion Light Treads Treads Light Treads Utility Medium Storage Unit Device Seismic Detector Storage Medium Storage Unit Weapon Medium Laser Energy Gun Medium Laser Ballistic Gun Assault Rifle Launcher Grenade Launcher Build | -11 -10 -10 ------- Run | Yrd Mat Min Slots Evolved . | . . . Power . | . . . Propulsion . | . . . Utility . | . . . Weapon . | . . . Parts Attached 11 | 7 1 3 Power 1 | 1 . . Engine 1 | 1 . . Core . | . . . Reactor . | . . . Propulsion 2 | 2 . . Treads 2 | 2 . . Leg . | . . . Wheel . | . . . Hover . | . . . Flight . | . . . Utility 4 | 2 1 1 Device 2 | 1 . 1 Storage 2 | 1 1 . Processor . | . . . Hackware . | . . . Protection . | . . . Artifact . | . . . Weapon 4 | 2 . 2 Energy Gun 1 | 1 . . Energy Cannon . | . . . Ballistic Gun 1 | 1 . . Ballistic Cannon . | . . . Launcher 2 | . . 2 Special Weapon . | . . . Impact Weapon . | . . . Slashing Weapon . | . . . Piercing Weapon . | . . . Special Melee Weapon . | . . . Unidentified Prototypes . | . . . Parts Lost 6 | . . 6 Power 1 | . . 1 Propulsion 2 | . . 2 Utility 1 | . . 1 Weapon 2 | . . 2 Highest Loss Streak 5 | . . 5 To Critical Strikes . | . . . Average Backups 6 | 2 6 9 Power . | . 1 1 Propulsion . | . . . Utility 1 | . 1 2 Weapon 3 | . 3 5 Tool/Special . | . . . Unused Backups 10 | . 3 7 Power 1 | . . 1 Propulsion . | . . . Utility 2 | . . 2 Weapon 6 | . 3 3 Tool/Special 1 | . . 1 Average Slot Usage (%) 99 | . 100 97 Engine 14 | . 14 14 Treads 27 | . 28 27 Device 13 | . 14 13 Storage 14 | . 14 14 Energy Gun 9 | . 14 1 Ballistic Gun 9 | . 14 . Launcher 9 | . . 24 Peak Build Rating 8 | 7 8 8 Average Rating 7 | 5 7 7 On Entrance 5 | . 7 8 Avg Prop Armor Cover (%) . | . . . Naked Turns . | . . . Heaviest Build 22 | 15 20 22 Greatest Support 40 | 40 40 40 Greatest Overweight (x) 5 | . . 5 Average Overweight (x) . | . . . Largest Inventory Capacity 10 | 8 10 10 Average Capacity 9 | 7 9 10 Most Carried 10 | 4 10 10 Average Carried 6 | 2 6 9 Final Capacity 10 | 8 10 10 Final Carried 10 | 3 10 9 Class Distribution -------------------- 100% | Mutant Dominant Class ---------------- Mutant | -10/Materials Mutant | -10/Mines Resources | -11 -10 -10 ----------- Run | Yrd Mat Min Matter Collected 451 | 269 131 51 Remotely . | . . . Salvage Created 491 | 150 269 72 Parts 29 | 11 18 . Haulers Intercepted 2 | . 2 . Recyclers Shooed . | . . . Parts Field Recycled . | . . . Retrieved Matter . | . . . Parts Self-Destructed . | . . . Prevented . | . . . Parts Restored . | . . . Kills | -11 -10 -10 ------- Run | Yrd Mat Min Combat Hostiles Destroyed 19 | . 3 16 Guns 4 | . 3 1 AOE 15 | . . 15 Classes Destroyed 9 | 2 6 1 Worker 1 | . 1 . Tunneler 5 | 5 . . Hauler 2 | . 2 . Recycler 1 | 1 . . Operator 1 | . 1 . Watcher 3 | . 3 . Swarmer 2 | . 2 . Grunt 2 | . 1 1 Assembled 15 | . . 15 Best Kill Streak 15 | 4 3 15 Combat Bots Only 15 | . 2 15 Max Kills in Single Turn 5 | 1 2 5 Gunslinging . | . . . Exploded 5 | . . 5 Melee . | . . . Uniques/NPCs Destroyed . | . . . Combat | -11 -10 -10 -------- Run | Yrd Mat Min Hostile Shots Fired 63 | . 18 45 Missed 17 | . 4 13 Hits 46 | . 14 32 Projectile 46 | . 14 32 AOE 11 | . . 11 Part Disruptions 1 | . . 1 Damage Taken 904 | . 128 776 Core 283 | . 15 268 Absorbed by Shields . | . . . Core Remaining (%) 100 | 100 . . Volleys Fired 60 | 13 27 20 Largest 2 | 2 2 2 Hottest 80 | 70 70 80 Shots Fired 115 | 26 54 35 Gun 91 | 26 54 11 Cannon . | . . . Launcher 24 | . . 24 Special . | . . . Kinetic 43 | 13 27 3 Thermal 48 | 13 27 8 Explosive 24 | . . 24 Electromagnetic . | . . . Robot Hit Streak 7 | 6 7 3 Robot Miss Streak 4 | 1 4 2 Penetration Max . | . . . Secondary Targets . | . . . Shots Hit Robots 59 | 19 27 13 Core Hits 59 | 7 13 39 Critical Kills . | . . . Critical Parts Destroyed . | . . . Critical Strikes 3 | 1 1 1 Burn 3 | 1 1 1 Melee Attacks . | . . . Impact . | . . . Slashing . | . . . Piercing . | . . . Sneak Attacks . | . . . Combat Hostiles . | . . . Follow-up Attacks . | . . . Damage Inflicted 1617 | 237 372 1008 Guns 698 | 237 372 89 Cannons . | . . . Explosions 919 | . . 919 Melee . | . . . Ramming . | . . . Kinetic 357 | 148 183 26 Thermal 341 | 89 189 63 Explosive 919 | . . 919 Electromagnetic . | . . . Impact . | . . . Slashing . | . . . Piercing . | . . . Highest Corruption . | . . . Average Corruption . | . . . Corruption Purged . | . . . Corruption Blocked . | . . . Overload Shots . | . . . Overflow Damage 8 | . . 8 Projectiles . | . . . Explosions 8 | . . 8 Melee . | . . . Knockbacks . | . . . Impact . | . . . Kinetic . | . . . Secondary . | . . . Self-Inflicted Damage 31 | . . 31 Shots 2 | . . 2 Rammed . | . . . Targets Rammed . | . . . Kicked . | . . . Crushed . | . . . Highest Temperature 85 | 45 75 85 Average Temperature 22 | 16 19 37 Received Heat Transfer 110 | . 36 74 Siege Activations . | . . . Martial Activations . | . . . Shielding Activations . | . . . Robots Disrupted . | . . . Combat Hostiles . | . . . Robots Corrupted . | . . . Combat Hostiles . | . . . Parts Fried . | . . . Impact Corruptions . | . . . Robots Melted . | . . . Combat Hostiles . | . . . Parts Melted 3 | 2 1 . Heat Transferred 1221 | 333 629 259 Parts Sabotaged . | . . . Parts Stolen . | . . . Parts Stripped . | . . . Power Chain Reactions . | . . . Alert | -11 -10 -10 ------- Run | Yrd Mat Min Maximum Alert Level . | . . . Low Security (%) 100 | 100 100 100 Level 1 . | . . . Level 2 . | . . . Level 3 . | . . . Level 4 . | . . . Level 5 . | . . . High Security . | . . . Max Security . | . . . Peak Influence 70 | 10 70 65 Initial 23 | . . 23 Average 14 | 2 12 25 Influence Increases 341 | 30 199 112 Destroy 0b10 Robot/C 80 | . 60 20 Destroy 0b10 Robot/NC 65 | 30 35 . Destroy Leader 30 | . 20 10 Trap Triggered on 0b10 40 | . 40 . Successful Hack 28 | . 28 . Destroy Structure 83 | . 1 82 Lose Combat Pursuer 15 | . 15 . Influence Decreases 341 | 30 138 173 Entered New Map 38 | . . 38 Time Decay 266 | 30 121 115 Lost Part 20 | . . 20 Purge Threat 17 | . 17 . Squads Dispatched . | . . . Investigation . | . . . Extermination . | . . . Reinforcement . | . . . Assault . | . . . Garrison . | . . . Intercept . | . . . Searches Triggered . | . . . Construction Impeded . | . . . Haulers Reinforced . | . . . Active Scanning Responses . | . . . Cargo Convoy Interrupts . | . . . Stealth | -11 -10 -10 --------- Run | Yrd Mat Min Distress Signals . | . . . Communications Jammed . | . . . Distress Signals . | . . . Times Spotted 27 | . 9 18 Peak Tracking Total 8 | . 4 8 Tactical Retreats 2 | . 1 1 Traps | -11 -10 -10 ------- Run | Yrd Mat Min Traps Triggered . | . . . Indirectly . | . . . Trap Hack Attempts . | . . . Triggered . | . . . Disarmed . | . . . Reprogrammed 6 | . 6 . Reused 4 | . 4 . Traps Extracted . | . . . Installed . | . . . Triggered 4 | . 4 . Machines | -11 -10 -10 ---------- Run | Yrd Mat Min Machines Disabled . | . . . Max in Single Turn . | . . . Machines Repaired . | . . . Machines Dismantled . | . . . Machines Sabotaged . | . . . Overloaded Fab Kills . | . . . Hacking | -11 -10 -10 --------- Run | Yrd Mat Min Machines Accessed 7 | . 7 . Terminals 6 | . 6 . Fabricators . | . . . Repair Stations . | . . . Recycling Units 1 | . 1 . Scanalyzers . | . . . Garrison Access . | . . . Total Hacks 21 | . 21 . Successful 11 | . 11 . Failed 10 | . 10 . Catastrophic 2 | . 2 . Database Lockouts . | . . . Manual 6 | . 6 . Terminals 18 | . 18 . Fabricators . | . . . Repair Stations . | . . . Recycling Units 3 | . 3 . Scanalyzers . | . . . Garrison Access . | . . . Terminal Hacks 9 | . 9 . Prototype ID Bank 1 | . 1 . Emergency Access Points 1 | . 1 . Terminal Index 1 | . 1 . Unreport Threat 1 | . 1 . Locate Traps 3 | . 3 . Reprogram Traps 1 | . 1 . Hauler Manifests 1 | . 1 . Fabricator Hacks . | . . . Repair Station Hacks . | . . . Recycling Unit Hacks 1 | . 1 . Report Inventory 1 | . 1 . Scanalyzer . | . . . Garrison Access Hacks . | . . . Unauthorized Hacks 1 | . 1 . Terminals . | . . . Fabricators . | . . . Repair Stations . | . . . Recycling Units 1 | . 1 . Mask 1 | . 1 . Scanalyzers . | . . . Garrison Access . | . . . Data Cores Recovered 1 | . 1 . Used . | . . . Hacking Detections 7 | . 7 . Full Trace Events . | . . . Feedback Events . | . . . Feedback Blocked . | . . . Robot Schematics Acquired . | . . . Robots Built . | . . . Authchips . | . . . Time . | . . . Total Robot Build Rating . | . . . Part Schematics Acquired . | . . . Parts Built . | . . . Authchips . | . . . Time . | . . . Total Part Build Rating . | . . . Part Studies Acquired . | . . . Parts Repaired . | . . . Time . | . . . Parts Recycled . | . . . Recycled Matter . | . . . Retrieved Matter . | . . . Retrieved Components . | . . . Parts Scanalyzed . | . . . Part Schematics Acquired . | . . . Parts Damaged . | . . . Bothacking | -11 -10 -10 ------------ Run | Yrd Mat Min Used RIF Installer . | . . . Robots Hacked . | . . . Non-combat . | . . . Combat . | . . . Robot Hacks Applied . | . . . Relay Couplers Released . | . . . Fabnet Peak Effective % . | . . . Robots Rewired . | . . . Allies Hacked . | . . . Hacks Repelled . | . . . Allies | -11 -10 -10 -------- Run | Yrd Mat Min Total Allies . | . . . Largest Group . | . . . Highest-Rated Group . | . . . Highest-Rated Ally . | . . . Total Orders . | . . . Ally Attacks . | . . . Total Damage . | . . . Kills . | . . . Allies Corrupted . | . . . Allies Melted . | . . . Intel | -11 -10 -10 ------- Run | Yrd Mat Min Active Infowar (turns) 811 | 12 504 295 Structural 275 | . . 275 Seismic 536 | 12 504 20 Robot Analysis Total . | . . . Derelict Logs Recovered . | . . . Drone Launches . | . . . Drone Recoveries . | . . . Exploration | -11 -10 -10 ------------- Run | Yrd Mat Min Turns Passed 988 | 167 504 317 Spaces Moved 482 | 74 249 159 Core 10 | 6 . 4 Treads 472 | 68 249 155 Legs . | . . . Wheels . | . . . Hover . | . . . Flight . | . . . Fastest Speed 50 | 50 160 160 Average Speed 159 | 151 160 161 Slowest Speed 300 | 160 160 300 Overloaded Moves . | . . . Propulsion Burnouts . | . . . Robots Hopped . | . . . Potential Cave-ins 2 | . . 2 Cave-ins Triggered . | . . . Exploration Rate (%) 27 | 7 41 35 Regions Visited 2 Branch Regions 1 Pre-discovered Areas . | . . . Known Exits Taken . | . . . Unknown Exits Taken 2 | 1 1 . Scrap Searched . | . . . Spaces Dug . | . . . Terrain Destroyed 140 | . . 140 Melee . | . . . Projectile . | . . . AOE 140 | . . 140 Terrain Rammed . | . . . Walls Destroyed . | . . . Machines Disabled . | . . . Actions | -11 -10 -10 --------- Run | Yrd Mat Min Total 589 | 103 302 184 Wait 13 | . 11 2 Move 480 | 73 248 159 Hop . | . . . Pick Up 21 | 10 11 . Fast Attach . | . . . Attach 8 | 7 . 1 Detach . | . . . Swap 3 | . 1 2 Drop 4 | . 4 . Fire 60 | 13 27 20 Melee . | . . . Ram . | . . . Kick . | . . . Crush . | . . . Escape Stasis . | . . . Rewire . | . . . Trap . | . . . Miscellaneous . | . . . Route ------- -11/Scrapyard -10/Materials (discovered 2 exits: [*Mat] / [*Min]) -10/Mines History --------- Turn | Location | Event 18 | -11/Scrapyard | Discovered new exit (range 15) 168 | -11/Scrapyard | Entered Materials 323 | -10/Materials | Build established: Mutant 461 | -10/Materials | Discovered new exit (range 7) 595 | -10/Materials | Discovered new exit (range 7) 672 | -10/Materials | Entered Mines 673 | -10/Mines | Assembled infested the area 764 | -10/Mines | Destroyed 15 combat bots 980 | -10/Mines | Core integrity fell below 50% 986 | -10/Mines | Core integrity fell below 20% 989 | -10/Mines | Destroyed by D-53 Grenadier with Mini Grenade Launcher Last Messages --------------- as-75327 destroyed. The unstable cave ceiling collapses. T-07 Excavator destroyed. The unstable cave ceiling collapses. R-06 Scavenger collects Imp. Light Armor Plating. The unstable cave ceiling collapses. T-07 Excavator destroyed. as-81349 destroyed. U-05 Engineer builds a Wall. U-05 Engineer lays Concrete. U-05 Engineer builds a Wall. The unstable cave ceiling collapses. K-01 Serf collects debris. Grenade Launcher destroyed. The unstable cave ceiling collapses. Grenade Launcher destroyed. Lgt. Treads destroyed. Ion Engine destroyed. The unstable cave ceiling collapses. Map ----- +----------------------------------------------------+ | | | | | ????????#####???????????????????????#######??????? | | ???????##################?????????##########?????? | | ??????#### ##############????????### ###?????? | | ??????### ############# ##?????? | | ??????## ############ ##?????? | | ??????## ###?????? | | ??????### ####??????? | | #####?##### ### ##################??????? | | ########### ###### #################????????? | | ######## ####### ####??###########?????????? | | # #### ###?### ###??##### ######????????? | | # ## ## ###??## ######## ###????????? | | # # ##??## ###### ##????????? | | # ##?### # # ####???????? | | ###### # ###???????? | | # ###### d ##???????? | | # #### ##???????? | | #### ##???????? | | ##### ###???????? | | " | ####### ## ###???????? | | !% ####?##### # ## ##????????? | | ###???##### ### ###????????? | | ##??????### #########????????? | | ## # ##???????## @ # #########?????????? | | ### # ####???????## ####???????????????? | | ##### #####???## ###????????????????? | | #### ###?????## ######?????????????????? | | ?? ##??????## #### #######?????????????????? | | ? ###??????## #########?????????????????????? | | ####??????## ??#####???????????????????????? | | ###????????????????????????????????????????? | | ##?????????????????????????????????????????? | | #?????????????????????????????????????????? | | ???????????????????????????????????????????? | | ???????????????????????????????????????????? | | ???????????????????????????????????????????? | | ???????????????????????????????????????????? | | ???????????????????????????????????????????? | | ?? %???????????????????????????????????????????? | | ???? ????????????????????????????????????????????? | | ?????????????????????????????????????????????????? | | ?????????????????????????????????????????????????? | | ?????????????????????????????????????????????????? | | ?????????????????????????????????????????????????? | | ?????????????????????????????????????????????????? | | ?????????????????????????????????????????????????? | | ?????????????????????????????????????????????????? | | ?????????????????????????????????????????????????? | +----------------------------------------------------+ Best States ------------- Heat Dissipation 25 Energy Generation 10 Energy Capacity 250 Matter Stores 300 Matter Capacity 300 Sight Range 16 Terrain Scan Density 10 Evasion (%) 40 Recoil Reduction 2 Item Schematics ----------------- None Robot Schematics ------------------ None Fabricated ------------ Nothing Repaired ---------- Nothing Studied --------- None Alien Tech Used ----------------- None Achievements -------------- None Challenges ------------ None Game ------ Seed InsulationMicrowarpJammer Manual? 0 Play Time 00:12:39 Cumulative 36.9 hours Start 2025.11.16 @ 16:01:47 End 2025.11.16 @ 16:11:39 Sessions 1 Manual Loads 0 Difficulty Rogue Special Mode None Game No. 34 Rogue 6 Adventurer 21 Explorer 7 Win Type - Total 1 Types 1/0/0/0/0/0/0/0/0/0 Lore% 37 Gallery% 38 Achievement% 32 Wizard Run 0 Options --------- Layout 1 ASCII 0 Keyboard 0 Movement Mouse Keybinds 0 Fullscreen 1 Font 48/Smallcaps Map View 50x35 Zoom Use 0% Tactical HUD 0 Map Filters NONE Filters NONE Steam 1 RUN: d3c59d48-db11-44f1-b157-6fc753bf825e